[Event "GER-ch Youth U14w 2019"]
[Site "Willingen"]
[Date "2019.06.12"]
[Round "6.12"]
[White "Sinner, Joselyne"]
[Black "Zixin, Li"]
[Result "0-1"]
[ECO "B49"]
[WhiteElo "1521"]
[BlackElo "1284"]
[Annotator "NA"]
[PlyCount "85"]
[EventDate "2019.06.07"]
[EventType "swiss"]
[EventRounds "9"]
[EventCountry "GER"]
[SourceTitle "playchess.com"]
[Source "ChessBase"]
[SourceQuality "1"]
[TimeControl "40/5400+30:1800+30"]

1. e4 {[%emt 0:00:00]} c5 {[%emt 0:00:00]} 2. Nf3 {[%emt 0:00:00]} e6 {[%emt 0:00:00]} 3. d4 {[%emt 0:00:00]} cxd4 {[%emt 0:00:00]} 4. Nxd4 {[%emt 0:00:00]} a6 {[%emt 0:00:00]} 5. Nc3 {[%emt 0:00:00]} Nc6 {[%emt 0:00:00]} 6. Be3 {[%emt 0:01:24]} Qc7 {[%emt 0:00:00]} 7. Be2 {[%emt 0:00:30]} Nf6 {[%emt 0:00:00]} 8. O-O {[%emt 0:00:29]} Be7 {[%emt 0:00:09]} 9. Qd2 {[%emt 0:01:00]} O-O {[%emt 0:01:23]} 10. f4 {[%emt 0:02:40]} d6 {[%emt 0:15:18]} 11. h3 {[%emt 0:11:50]} b5 {[%emt 0:01:08]} 12. a3 {[%emt 0:01:17]} Bb7 {[%emt 0:00:11]} 13. Bd3 {[%emt 0:03:57]} Rfd8 {[%emt 0:04:25]} 14. Qf2 {[%emt 0:17:01]} e5 {[%emt 0:01:08]} 15. Nf5 {[%emt 0:02:24]} Qd7 {[%emt 0:03:13]} 16. Qg3 {[%emt 0:09:00]} Bf8 {[%emt 0:01:13]} 17. a4 {[%emt 0:21:51]} b4 {[%emt 0:01:46]} 18. Bc4 {[%emt 0:05:59]} Kh8 {[%emt 0:20:15]} 19. Nd5 {[%emt 0:12:50]} Nxe4 {[%emt 0:00:32]} 20. Qg4 {[%emt 0:01:49]} Qe8 {[%emt 0:04:14]} 21. Nc7 {[%emt 0:01:48]} Nf6 {[%emt 0:02:39]} 22. Qg5 {[%emt 0:01:14]} Qd7 {[%emt 0:01:45]} 23. Nxa8 {[%emt 0:00:52]} Rxa8 {[%emt 0:00:16]} 24. Rad1 {[%emt 0:02:22]} Na5 {[%emt 0:00:58]} 25. Rxd6 {[%emt 0:00:51]} Qc7 {[%emt 0:01:38]} 26. Bd3 {[%emt 0:00:32]} Ne8 27. Bb6 {[%emt 0:00:37]} f6 {[%emt 0:01:54]} 28. Qh4 {[%emt 0:00:47]} Qf7 {[%emt 0:01:20]} 29. Ne7 {[%emt 0:00:28]} h6 {[%emt 0:00:59]} 30. Ng6+ {[%emt 0:00:18]} Kg8 {[%emt 0:01:10]} 31. Rd8 {[%emt 0:00:42]} Rxd8 {[%emt 0:00:14]} 32. Bxd8 {[%emt 0:00:02]} Qd5 {[%emt 0:00:39]} 33. Qg3 {[%emt 0:01:16]} Qxd8 {[%emt 0:00:52]} 34. Nh4 {[%emt 0:00:22]} Qd4+ {[%emt 0:01:11]} 35. Kh1 {[%emt 0:00:37]} Be4 {[%emt 0:01:16]} 36. Bxe4 {[%emt 0:00:29]} Qxe4 {[%emt 0:00:06]} 37. fxe5 {[%emt 0:00:31]} fxe5 38. Ng6 {[%emt 0:00:28]} Nf6 {[%emt 0:02:15]} 39. Nxe5 {[%emt 0:00:33]} Qxc2 {[%emt 0:01:35]} 40. Rxf6 {[%emt 0:00:07]} Qxb2 {[%emt 0:00:52]} 41. Rxh6 {[%emt 0:30:58]} Qc1+ {[%emt 0:31:01]} 42. Kh2 {[%emt 0:00:00]} Qxh6 {[%emt 0:00:00]} 43. Ng4 {[%emt 0:00:00] normal} 0-1

[Event "GER-ch Youth U14w 2019"]
[Site "Willingen"]
[Date "2019.06.13"]
[Round "7.1"]
[White "Reuter, Elisa"]
[Black "Bashylina, Luisa"]
[Result "1/2-1/2"]
[ECO "B42"]
[WhiteElo "1923"]
[BlackElo "1886"]
[Annotator "NA"]
[PlyCount "30"]
[EventDate "2019.06.07"]
[EventType "swiss"]
[EventRounds "9"]
[EventCountry "GER"]
[SourceTitle "playchess.com"]
[Source "ChessBase"]
[SourceQuality "1"]
[TimeControl "40/5400+30:1800+30"]

1. e4 {[%emt 0:00:00]} c5 {[%emt 0:00:00]} 2. Nf3 {[%emt 0:00:00]} e6 {[%emt 0:00:00]} 3. d4 {[%emt 0:00:00]} cxd4 {[%emt 0:00:02]} 4. Nxd4 {[%emt 0:00:00]} a6 {[%emt 0:00:06]} 5. Bd3 {[%emt 0:00:00]} Qc7 {[%emt 0:01:02]} 6. O-O {[%emt 0:00:10]} Nf6 {[%emt 0:00:31]} 7. Qe2 {[%emt 0:00:25]} d6 {[%emt 0:01:46]} 8. f4 {[%emt 0:05:21]} Nbd7 {[%emt 0:10:04]} 9. Nb3 {[%emt 0:05:44]} Be7 {[%emt 0:02:29]} 10. Nc3 {[%emt 0:04:29]} b5 {[%emt 0:02:26]} 11. a4 {[%emt 0:08:47]} b4 {[%emt 0:02:50]} 12. Nd1 {[%emt 0:01:40]} Bb7 {[%emt 0:04:14]} 13. Nf2 {[%emt 0:01:48]} O-O {[%emt 0:02:05]} 14. Bd2 {[%emt 0:04:30]} a5 {[%emt 0:03:43]} 15. Nd4 {[%emt 0:02:10] normal} Nc5 {[%emt 0:07:19] normal} 1/2-1/2

[Event "GER-ch Youth U14w 2019"]
[Site "Willingen"]
[Date "2019.06.13"]
[Round "7.2"]
[White "Doll, Rebecca"]
[Black "Butenandt, Svenja"]
[Result "1/2-1/2"]
[ECO "B22"]
[WhiteElo "1678"]
[BlackElo "1722"]
[Annotator "NA"]
[PlyCount "71"]
[EventDate "2019.06.07"]
[EventType "swiss"]
[EventRounds "9"]
[EventCountry "GER"]
[SourceTitle "playchess.com"]
[Source "ChessBase"]
[SourceQuality "1"]
[TimeControl "40/5400+30:1800+30"]

1. e4 {[%emt 0:00:00]} c5 {[%emt 0:00:00]} 2. c3 {[%emt 0:00:00]} d5 {[%emt 0:00:00]} 3. exd5 {[%emt 0:00:00]} Qxd5 {[%emt 0:00:00]} 4. d4 {[%emt 0:00:03]} Nf6 {[%emt 0:00:00]} 5. Nf3 {[%emt 0:00:17]} e6 {[%emt 0:00:00]} 6. Be2 {[%emt 0:00:23]} Nc6 {[%emt 0:00:08]} 7. O-O {[%emt 0:02:17]} Be7 {[%emt 0:01:27]} 8. Be3 {[%emt 0:05:17]} cxd4 {[%emt 0:07:47]} 9. Nxd4 {[%emt 0:07:17]} Nxd4 {[%emt 0:09:47]} 10. Bxd4 {[%emt 0:05:32]} O-O {[%emt 0:02:10]} 11. Re1 {[%emt 0:07:23]} Rd8 {[%emt 0:04:35]} 12. Nd2 {[%emt 0:06:20]} Qf5 {[%emt 0:07:17]} 13. Bf3 {[%emt 0:12:47]} Qb5 {[%emt 0:07:15]} 14. Qc2 {[%emt 0:03:55]} Qd7 {[%emt 0:09:39]} 15. Rad1 {[%emt 0:03:26]} Nd5 {[%emt 0:07:02]} 16. a3 {[%emt 0:06:38]} Qc7 {[%emt 0:05:14]} 17. Qb3 {[%emt 0:08:25]} Bd6 {[%emt 0:04:56]} 18. h3 {[%emt 0:04:37]} Bc5 {[%emt 0:04:12]} 19. Nc4 {[%emt 0:08:04]} Bxd4 {[%emt 0:02:30]} 20. Rxd4 {[%emt 0:00:19]} Ne7 {[%emt 0:03:04]} 21. Rxd8+ {[%emt 0:01:07]} Qxd8 {[%emt 0:00:06]} 22. Rd1 {[%emt 0:02:14]} Qc7 {[%emt 0:01:01]} 23. Nd6 {[%emt 0:02:38]} Nc6 {[%emt 0:01:49]} 24. Qc4 {[%emt 0:03:42]} Bd7 {[%emt 0:05:10]} 25. Nb5 {[%emt 0:02:48]} Qc8 {[%emt 0:00:22]} 26. Qf4 {[%emt 0:00:51]} Be8 {[%emt 0:03:43]} 27. Qd6 {[%emt 0:01:31]} Na5 28. Nc7 {[%emt 0:00:31]} Rb8 {[%emt 0:06:35]} 29. Nxe8 {[%emt 0:01:02]} Qxe8 {[%emt 0:00:14]} 30. Qb4 {[%emt 0:00:24]} Nc6 {[%emt 0:01:23]} 31. Qc5 {[%emt 0:00:31]} a6 {[%emt 0:04:01]} 32. Qb6 {[%emt 0:01:35]} h6 {[%emt 0:02:18]} 33. Bxc6 {[%emt 0:00:40]} bxc6 {[%emt 0:01:09]} 34. Qxa6 {[%emt 0:00:35]} Rxb2 {[%emt 0:00:14]} 35. Qd3 {[%emt 0:02:05]} Rb3 {[%emt 0:01:24]} 36. Qa6 {[%emt 0:01:02] normal} 1/2-1/2

[Event "GER-ch Youth U14w 2019"]
[Site "Willingen"]
[Date "2019.06.13"]
[Round "7.3"]
[White "Yue, Qizhou"]
[Black "Gerber, Anna Sophie"]
[Result "1/2-1/2"]
[ECO "B40"]
[WhiteElo "1840"]
[BlackElo "1473"]
[Annotator "NA"]
[PlyCount "52"]
[EventDate "2019.06.07"]
[EventType "swiss"]
[EventRounds "9"]
[EventCountry "GER"]
[SourceTitle "playchess.com"]
[Source "ChessBase"]
[SourceQuality "1"]
[TimeControl "40/5400+30:1800+30"]

1. e4 {[%emt 0:00:00]} c5 {[%emt 0:00:00]} 2. Nf3 {[%emt 0:00:00]} e6 {[%emt 0:00:00]} 3. g3 {[%emt 0:00:00]} Nc6 {[%emt 0:03:53]} 4. Bg2 {[%emt 0:00:16]} Nf6 {[%emt 0:01:42]} 5. Nc3 {[%emt 0:01:39]} d5 {[%emt 0:03:09]} 6. exd5 {[%emt 0:00:38]} exd5 {[%emt 0:00:27]} 7. d4 {[%emt 0:00:49]} Be6 {[%emt 0:12:14]} 8. O-O {[%emt 0:02:12]} Be7 {[%emt 0:05:52]} 9. h3 {[%emt 0:11:41]} O-O {[%emt 0:09:11]} 10. Be3 {[%emt 0:00:54]} c4 {[%emt 0:06:17]} 11. Ne5 {[%emt 0:02:16]} Qc8 {[%emt 0:03:10]} 12. Kh2 {[%emt 0:01:50]} Rd8 {[%emt 0:03:13]} 13. f4 {[%emt 0:02:01]} h5 {[%emt 0:02:02]} 14. Ne2 {[%emt 0:09:23]} Bf5 {[%emt 0:01:42]} 15. c3 {[%emt 0:03:44]} a6 {[%emt 0:06:00]} 16. Ng1 {[%emt 0:01:04]} g6 {[%emt 0:01:55]} 17. Ngf3 {[%emt 0:01:15]} Ne4 {[%emt 0:02:10]} 18. Nxc6 {[%emt 0:08:30]} bxc6 {[%emt 0:00:39]} 19. Ne5 {[%emt 0:01:07]} Rb8 {[%emt 0:01:00]} 20. g4 {[%emt 0:01:32]} hxg4 {[%emt 0:03:48]} 21. hxg4 {[%emt 0:00:09]} Be6 {[%emt 0:01:35]} 22. Bxe4 {[%emt 0:02:02]} dxe4 {[%emt 0:00:52]} 23. Rb1 {[%emt 0:01:21]} Kg7 {[%emt 0:01:53]} 24. f5 {[%emt 0:00:41]} Rh8+ {[%emt 0:01:57]} 25. Kg1 {[%emt 0:07:32]} gxf5 {[%emt 0:01:53]} 26. gxf5 {[%emt 0:00:40]} Bxf5 {[%emt 0:00:52] normal} 1/2-1/2

[Event "GER-ch Youth U14w 2019"]
[Site "Willingen"]
[Date "2019.06.13"]
[Round "7.4"]
[White "Orlova, Alicia"]
[Black "Bildat, Emilia"]
[Result "1-0"]
[ECO "B20"]
[WhiteElo "1490"]
[BlackElo "1649"]
[Annotator "NA"]
[PlyCount "52"]
[EventDate "2019.06.07"]
[EventType "swiss"]
[EventRounds "9"]
[EventCountry "GER"]
[SourceTitle "playchess.com"]
[Source "ChessBase"]
[SourceQuality "1"]
[TimeControl "40/5400+30:1800+30"]

1. e4 {[%emt 0:00:00]} c5 {[%emt 0:00:00]} 2. b3 {[%emt 0:00:00]} Nc6 {[%emt 0:00:08]} 3. Bb2 {[%emt 0:01:09]} e5 {[%emt 0:01:59]} 4. d3 {[%emt 0:02:33]} Nge7 {[%emt 0:01:07]} 5. g3 {[%emt 0:01:34]} d6 {[%emt 0:00:58]} 6. f4 {[%emt 0:03:02]} g6 {[%emt 0:01:49]} 7. Nf3 {[%emt 0:03:07]} Bg7 {[%emt 0:01:55]} 8. Bg2 {[%emt 0:03:03]} O-O {[%emt 0:01:22]} 9. O-O {[%emt 0:03:02]} Bd7 {[%emt 0:04:15]} 10. c3 {[%emt 0:01:23]} d5 {[%emt 0:05:17]} 11. Nbd2 {[%emt 0:06:33]} Qb6 {[%emt 0:12:18]} 12. Kh1 {[%emt 0:03:43]} h6 {[%emt 0:05:51]} 13. Qe2 {[%emt 0:03:28]} exf4 {[%emt 0:02:29]} 14. gxf4 {[%emt 0:00:45]} Rfe8 {[%emt 0:00:33]} 15. Qf2 {[%emt 0:08:23]} Qa5 {[%emt 0:05:51]} 16. e5 {[%emt 0:02:34]} Nf5 {[%emt 0:03:06]} 17. Nh4 {[%emt 0:04:02]} Nxh4 {[%emt 0:04:22]} 18. Qxh4 {[%emt 0:00:07]} Ne7 {[%emt 0:00:15]} 19. Qf2 {[%emt 0:07:07]} Bc6 {[%emt 0:01:29]} 20. Rg1 {[%emt 0:04:29]} Nf5 {[%emt 0:02:27]} 21. Nf3 {[%emt 0:04:08]} f6 {[%emt 0:02:56]} 22. Bh3 {[%emt 0:02:07]} Kh7 {[%emt 0:03:00]} 23. Bxf5 {[%emt 0:04:27]} gxf5 {[%emt 0:00:27]} 24. Qg3 {[%emt 0:00:26]} Rg8 {[%emt 0:01:38]} 25. Qg6+ {[%emt 0:00:42]} Kh8 {[%emt 0:00:07]} 26. exf6 {[%emt 0:00:18]} Qc7 {[%emt 0:04:14] normal} 1-0

[Event "GER-ch Youth U14w 2019"]
[Site "Willingen"]
[Date "2019.06.13"]
[Round "7.5"]
[White "Peglau, Mirjam"]
[Black "Schmidt, Pauline"]
[Result "1/2-1/2"]
[ECO "E20"]
[WhiteElo "1746"]
[BlackElo "1620"]
[Annotator "NA"]
[PlyCount "102"]
[EventDate "2019.06.07"]
[EventType "swiss"]
[EventRounds "9"]
[EventCountry "GER"]
[SourceTitle "playchess.com"]
[Source "ChessBase"]
[SourceQuality "1"]
[TimeControl "40/5400+30:1800+30"]

1. d4 {[%emt 0:00:00]} Nf6 {[%emt 0:00:00]} 2. c4 {[%emt 0:00:00]} e6 {[%emt 0:00:00]} 3. Nc3 {[%emt 0:00:10]} Bb4 {[%emt 0:00:00]} 4. Bd2 {[%emt 0:01:24]} Bxc3 {[%emt 0:03:14]} 5. Bxc3 {[%emt 0:00:33]} b6 {[%emt 0:00:35]} 6. Nf3 {[%emt 0:01:39]} Bb7 {[%emt 0:01:03]} 7. e3 {[%emt 0:00:35]} O-O {[%emt 0:02:07]} 8. Bd3 {[%emt 0:00:19]} Ne4 {[%emt 0:00:59]} 9. Rc1 {[%emt 0:01:45]} Nxc3 {[%emt 0:13:28]} 10. Rxc3 {[%emt 0:00:23]} f5 {[%emt 0:06:19]} 11. O-O {[%emt 0:01:03]} d6 {[%emt 0:12:49]} 12. b4 {[%emt 0:03:47]} Qf6 {[%emt 0:04:42]} 13. c5 {[%emt 0:08:10]} dxc5 {[%emt 0:01:57]} 14. bxc5 {[%emt 0:00:08]} Nc6 {[%emt 0:01:08]} 15. Bb5 {[%emt 0:06:29]} Ne7 {[%emt 0:09:45]} 16. c6 {[%emt 0:06:04]} Bc8 {[%emt 0:00:09]} 17. Ne5 {[%emt 0:00:38]} Nd5 {[%emt 0:02:07]} 18. Ra3 {[%emt 0:04:27]} Qe7 {[%emt 0:03:42]} 19. Qb3 {[%emt 0:01:01]} a5 {[%emt 0:07:11]} 20. Rc1 {[%emt 0:04:01]} Rd8 {[%emt 0:06:21]} 21. Ra4 {[%emt 0:03:34]} Ba6 {[%emt 0:02:16]} 22. Bxa6 {[%emt 0:01:44]} Rxa6 {[%emt 0:00:09]} 23. Rac4 {[%emt 0:00:29]} Nf6 {[%emt 0:04:05]} 24. f3 {[%emt 0:03:27]} Raa8 {[%emt 0:02:56]} 25. Qd3 {[%emt 0:03:52]} Qd6 {[%emt 0:03:44]} 26. Rb1 {[%emt 0:02:14]} Qxe5 {[%emt 0:06:50]} 27. dxe5 {[%emt 0:00:01]} Rxd3 {[%emt 0:00:10]} 28. exf6 {[%emt 0:00:11]} Rxe3 {[%emt 0:00:34]} 29. fxg7 {[%emt 0:00:15]} Rd3 {[%emt 0:01:36]} 30. Re1 {[%emt 0:00:38]} Rd6 {[%emt 0:00:19]} 31. g4 {[%emt 0:01:50]} fxg4 {[%emt 0:01:28]} 32. Rxg4 {[%emt 0:02:18]} Rxc6 {[%emt 0:00:52]} 33. h4 {[%emt 0:00:27]} Re8 {[%emt 0:00:58]} 34. h5 {[%emt 0:03:06]} h6 {[%emt 0:02:38]} 35. Rg6 {[%emt 0:15:57]} Kh7 {[%emt 0:00:22]} 36. f4 {[%emt 0:01:07]} Rc5 {[%emt 0:00:52]} 37. g8=Q+ {[%emt 0:00:34]} Rxg8 {[%emt 0:00:05]} 38. Rxg8 {[%emt 0:00:21]} Kxg8 {[%emt 0:00:06]} 39. Rxe6 {[%emt 0:00:04]} Rxh5 {[%emt 0:00:15]} 40. Rc6 {[%emt 0:00:09]} Rf5 {[%emt 0:00:12]} 41. Rxc7 {[%emt 0:30:31]} b5 {[%emt 0:14:50]} 42. Ra7 {[%emt 0:00:00]} b4 {[%emt 0:08:29]} 43. Kg2 {[%emt 0:00:00]} Rxf4 {[%emt 0:04:47]} 44. Rxa5 {[%emt 0:00:00]} Kg7 {[%emt 0:04:19]} 45. Ra4 {[%emt 0:00:00] normal} Rc4 {[%emt 0:00:21] normal} 46. Ra6 {[%emt 0:00:00]} h5 {[%emt 0:00:40]} 47. Kh3 {[%emt 0:00:00] normal} Rc3+ {[%emt 0:01:06]} 48. Kh4 {[%emt 0:00:00]} Ra3 {[%emt 0:00:11] normal} 49. Rb6 {[%emt 0:00:00] normal} Rxa2 {[%emt 0:00:59]} 50. Rxb4 {[%emt 0:00:00]} Ra5 {[%emt 0:00:26] normal} 51. Rb6 {[%emt 0:00:00]} Kh7 {[%emt 0:00:38] normal} 1/2-1/2

[Event "GER-ch Youth U14w 2019"]
[Site "Willingen"]
[Date "2019.06.13"]
[Round "7.6"]
[White "Buchholz, Maja"]
[Black "Heutling, Elina"]
[Result "1-0"]
[ECO "A15"]
[WhiteElo "1657"]
[BlackElo "1712"]
[Annotator "NA"]
[PlyCount "81"]
[EventDate "2019.06.07"]
[EventType "swiss"]
[EventRounds "9"]
[EventCountry "GER"]
[SourceTitle "playchess.com"]
[Source "ChessBase"]
[SourceQuality "1"]
[TimeControl "40/5400+30:1800+30"]

1. c4 {[%emt 0:00:00]} Nf6 {[%emt 0:00:00]} 2. g3 {[%emt 0:00:00]} g6 {[%emt 0:00:00]} 3. Bg2 {[%emt 0:00:00]} Bg7 {[%emt 0:00:00]} 4. Nf3 {[%emt 0:00:00]} O-O {[%emt 0:00:18]} 5. O-O {[%emt 0:00:00]} d6 {[%emt 0:00:24]} 6. d3 {[%emt 0:00:25]} c5 {[%emt 0:03:10]} 7. Nc3 {[%emt 0:00:30]} Nc6 {[%emt 0:03:06]} 8. a3 {[%emt 0:01:13]} e5 {[%emt 0:02:41]} 9. Rb1 {[%emt 0:02:12]} Rb8 {[%emt 0:18:01]} 10. b4 {[%emt 0:01:03]} Ne8 {[%emt 0:02:41]} 11. b5 {[%emt 0:04:29]} Na5 {[%emt 0:06:58]} 12. Bd2 {[%emt 0:02:49]} f5 {[%emt 0:05:20]} 13. Qa4 {[%emt 0:05:38]} Nf6 {[%emt 0:11:30]} 14. Rfc1 {[%emt 0:03:06]} h6 {[%emt 0:04:59]} 15. Ne1 {[%emt 0:07:05]} b6 {[%emt 0:03:51]} 16. Nc2 {[%emt 0:08:09]} Bb7 {[%emt 0:02:37]} 17. Ne3 {[%emt 0:04:15]} Bxg2 {[%emt 0:01:47]} 18. Kxg2 {[%emt 0:00:11]} Nd7 {[%emt 0:07:56]} 19. Ned5 {[%emt 0:01:24]} g5 {[%emt 0:01:21]} 20. Rf1 {[%emt 0:09:36]} g4 {[%emt 0:01:13]} 21. Rh1 {[%emt 0:02:35]} f4 {[%emt 0:06:07]} 22. Ne4 {[%emt 0:06:32]} f3+ {[%emt 0:02:30]} 23. exf3 {[%emt 0:00:20]} gxf3+ {[%emt 0:03:09]} 24. Kg1 {[%emt 0:01:20]} Qe8 {[%emt 0:02:04]} 25. Nxd6 {[%emt 0:01:31]} Qe6 {[%emt 0:00:38]} 26. Ne4 {[%emt 0:01:44]} Qh3 {[%emt 0:00:47]} 27. Ne3 {[%emt 0:00:21]} Nf6 {[%emt 0:01:50]} 28. Bxa5 {[%emt 0:07:34]} Ng4 {[%emt 0:01:33]} 29. Rb2 {[%emt 0:01:46]} bxa5 {[%emt 0:01:35]} 30. Qxa5 {[%emt 0:02:00]} Rbd8 {[%emt 0:01:43]} 31. Qd2 {[%emt 0:05:22]} Rd4 {[%emt 0:02:14]} 32. Qd1 {[%emt 0:03:24]} Rfd8 {[%emt 0:01:27]} 33. Qxf3 {[%emt 0:02:06]} Rxd3 {[%emt 0:00:44]} 34. Qxg4 {[%emt 0:02:27]} Rd1+ {[%emt 0:00:31]} 35. Qxd1 {[%emt 0:00:18]} Rxd1+ {[%emt 0:00:04]} 36. Nxd1 {[%emt 0:00:08]} Qf5 {[%emt 0:00:29]} 37. Ndc3 {[%emt 0:02:28]} Qf3 {[%emt 0:00:24]} 38. Rd2 {[%emt 0:01:01]} Qf7 {[%emt 0:01:56]} 39. Kg2 {[%emt 0:02:34]} Qxc4 {[%emt 0:00:30]} 40. Rhd1 {[%emt 0:00:52]} Qb3 {[%emt 0:00:39]} 41. a4 {[%emt 0:30:09] normal} 1-0

[Event "GER-ch Youth U14w 2019"]
[Site "Willingen"]
[Date "2019.06.13"]
[Round "7.7"]
[White "Kalina, Lena"]
[Black "Adelhardt, Lisa"]
[Result "1/2-1/2"]
[ECO "E12"]
[WhiteElo "1687"]
[BlackElo "1293"]
[Annotator "NA RC"]
[PlyCount "110"]
[EventDate "2019.06.07"]
[EventType "swiss"]
[EventRounds "9"]
[EventCountry "GER"]
[SourceTitle "playchess.com"]
[Source "ChessBase"]
[SourceQuality "1"]
[TimeControl "40/5400+30:1800+30"]

1. d4 {[%emt 0:00:00]} Nf6 {[%emt 0:00:00]} 2. c4 {[%emt 0:00:00]} e6 {[%emt 0:00:00]} 3. Nf3 {[%emt 0:00:00]} b6 {[%emt 0:00:57]} 4. a3 {[%emt 0:00:00]} Bb7 {[%emt 0:00:21]} 5. Nc3 {[%emt 0:00:32]} Be7 {[%emt 0:00:56]} 6. d5 {[%emt 0:00:38]} exd5 {[%emt 0:11:33]} 7. cxd5 {[%emt 0:00:24]} d6 {[%emt 0:02:34]} 8. e4 {[%emt 0:01:37]} Nbd7 {[%emt 0:01:42]} 9. Bd3 {[%emt 0:07:47]} Ne5 {[%emt 0:15:31]} 10. Nxe5 {[%emt 0:04:26]} dxe5 {[%emt 0:00:31]} 11. Bb5+ {[%emt 0:05:30]} Nd7 {[%emt 0:01:10]} 12. Qg4 {[%emt 0:05:18]} Bf6 {[%emt 0:10:50]} 13. O-O {[%emt 0:07:57]} a6 {[%emt 0:08:38]} 14. Bc4 {[%emt 0:06:12]} O-O {[%emt 0:06:27]} 15. Be3 {[%emt 0:06:55]} Kh8 {[%emt 0:10:18]} 16. Rac1 {[%emt 0:07:11]} Be7 {[%emt 0:08:21]} 17. Qh5 {[%emt 0:06:45]} g6 {[%emt 0:09:39]} 18. Qh3 {[%emt 0:02:33]} Bc8 {[%emt 0:02:50]} 19. Qf3 {[%emt 0:02:21]} Bg5 {[%emt 0:01:46]} 20. Rfd1 {[%emt 0:05:26]} Bxe3 {[%emt 0:01:44]} 21. Qxe3 {[%emt 0:00:32]} Nc5 {[%emt 0:02:43]} 22. b4 {[%emt 0:02:32]} Nb7 {[%emt 0:00:16]} 23. Qg3 {[%emt 0:04:33]} Qe7 {[%emt 0:01:25]} 24. Bb3 {[%emt 0:01:39]} Nd6 {[%emt 0:00:43]} 25. Ba4 {[%emt 0:04:54]} f6 {[%emt 0:00:59]} 26. Qd3 {[%emt 0:02:37]} Bd7 {[%emt 0:00:20]} 27. f3 {[%emt 0:03:33]} Ra7 {[%emt 0:00:29]} 28. Bxd7 {[%emt 0:01:23]} Qxd7 {[%emt 0:00:09]} 29. a4 {[%emt 0:01:09]} a5 {[%emt 0:00:28]} 30. b5 {[%emt 0:00:23]} Rf7 {[%emt 0:00:37]} 31. Ne2 {[%emt 0:01:27]} Qe7 {[%emt 0:00:32]} 32. Qb3 {[%emt 0:02:07]} Qe8 {[%emt 0:00:42]} 33. Rc6 {[%emt 0:01:03]} Rd7 {[%emt 0:00:44]} 34. Rdc1 {[%emt 0:01:05]} Qf7 {[%emt 0:00:17]} 35. Qe3 {[%emt 0:01:58]} Kg7 {[%emt 0:00:40]} 36. Ng3 {[%emt 0:01:14]} Nb7 {[%emt 0:00:34]} 37. R6c4 {[%emt 0:02:59]} Nd6 {[%emt 0:00:17]} 38. R4c2 {[%emt 0:00:37]} Rb7 {[%emt 0:00:21]} 39. Qc3 {[%emt 0:00:50]} Qe7 {[%emt 0:00:26]} 40. h4 {[%emt 0:00:47]} Kf7 {[%emt 0:00:37]} 41. Qe3 {[%emt 0:30:53]} Kg7 {[%emt 0:30:11]} 42. Kf2 {[%emt 0:00:00]} Ra7 {[%emt 0:00:00]} 43. Ne2 {[%emt 0:00:00]} Qd8 {[%emt 0:00:00]} 44. Rh1 {[%emt 0:00:00]} h6 {[%emt 0:00:00]} 45. g4 {[%emt 0:00:00]} Rf7 {[%emt 0:00:00]} 46. Ke1 {[%emt 0:00:00]} Qe7 {[%emt 0:00:00]} 47. Qc3 {[%emt 0:00:00]} Rf8 {[%emt 0:02:33]} 48. Ng3 {[%emt 0:02:34]} Rf7 {[%emt 0:00:59]} 49. Ke2 {[%emt 0:01:23]} Ra8 {[%emt 0:00:45]} 50. Qc6 {[%emt 0:00:41]} Ra7 {[%emt 0:00:15]} 51. Qc3 {[%emt 0:00:29]} Ra8 {[%emt 0:00:06]} 52. Qb3 {[%emt 0:00:24]} Kh7 {[%emt 0:00:50]} 53. Qe3 {[%emt 0:00:28]} Ra7 {[%emt 0:00:38]} 54. Qd2 {[%emt 0:00:38]} Ra8 {[%emt 0:00:56]} 55. Qd3 {[%emt 0:00:31]} Ra7 {[%emt 0:00:18] normal} 1/2-1/2

[Event "GER-ch Youth U14w 2019"]
[Site "Willingen"]
[Date "2019.06.13"]
[Round "7.8"]
[White "Avetyan, Manan"]
[Black "Albayrak, Nese Pinar"]
[Result "1-0"]
[ECO "C47"]
[WhiteElo "1307"]
[BlackElo "1530"]
[Annotator "NA"]
[PlyCount "93"]
[EventDate "2019.06.07"]
[EventType "swiss"]
[EventRounds "9"]
[EventCountry "GER"]
[SourceTitle "playchess.com"]
[Source "ChessBase"]
[SourceQuality "1"]
[TimeControl "40/5400+30:1800+30"]

1. e4 {[%emt 0:00:00]} e5 {[%emt 0:00:00]} 2. Nf3 {[%emt 0:00:00]} Nc6 {[%emt 0:00:00]} 3. Nc3 Nf6 {[%emt 0:00:01]} 4. d4 {[%emt 0:00:00]} exd4 {[%emt 0:00:53]} 5. Nxd4 {[%emt 0:00:00]} Bb4 {[%emt 0:01:15]} 6. Nxc6 {[%emt 0:00:04]} bxc6 {[%emt 0:02:02]} 7. Bd3 {[%emt 0:00:55]} d5 {[%emt 0:09:44]} 8. exd5 {[%emt 0:03:17]} Qe7+ {[%emt 0:11:17]} 9. Be2 {[%emt 0:11:19]} Nxd5 {[%emt 0:07:45]} 10. Qd3 {[%emt 0:14:13]} O-O {[%emt 0:12:14]} 11. O-O {[%emt 0:06:45]} Bb7 {[%emt 0:06:58]} 12. Re1 {[%emt 0:08:17]} Rad8 {[%emt 0:02:14]} 13. Qg3 {[%emt 0:04:21]} Kh8 {[%emt 0:07:50]} 14. Bg5 {[%emt 0:13:53]} f6 {[%emt 0:00:52]} 15. Bc4 {[%emt 0:05:50]} Qc5 {[%emt 0:12:07]} 16. Bxd5 {[%emt 0:06:41]} cxd5 {[%emt 0:00:17]} 17. Bf4 {[%emt 0:03:30]} Rc8 {[%emt 0:06:23]} 18. a3 {[%emt 0:02:45]} Bxc3 {[%emt 0:00:32]} 19. Qxc3 {[%emt 0:02:44]} Qxc3 {[%emt 0:00:27]} 20. bxc3 Rf7 {[%emt 0:01:03]} 21. Re6 {[%emt 0:04:11]} Kg8 {[%emt 0:01:51]} 22. h4 {[%emt 0:01:08]} Rd8 {[%emt 0:02:20]} 23. Rae1 {[%emt 0:01:04]} Kf8 {[%emt 0:02:25]} 24. g4 {[%emt 0:01:15]} Bc8 {[%emt 0:01:42]} 25. Rc6 {[%emt 0:00:49]} Bxg4 {[%emt 0:00:12]} 26. Bxc7 {[%emt 0:00:27]} Bd7 {[%emt 0:07:08]} 27. Ra6 {[%emt 0:04:15]} Ra8 {[%emt 0:01:42]} 28. Rd1 {[%emt 0:01:33]} Bb5 {[%emt 0:01:41]} 29. Bd6+ {[%emt 0:00:16]} Ke8 {[%emt 0:00:16]} 30. Ra5 {[%emt 0:00:24]} Bc4 {[%emt 0:00:25]} 31. Rc5 {[%emt 0:00:59]} Rd8 {[%emt 0:01:07]} 32. Re1+ {[%emt 0:00:55]} Kd7 {[%emt 0:00:15]} 33. Rc7+ {[%emt 0:00:06]} Kxd6 {[%emt 0:00:10]} 34. Rxf7 {[%emt 0:00:05]} Rd7 {[%emt 0:00:49]} 35. Rxd7+ {[%emt 0:01:46]} Kxd7 36. Kg2 {[%emt 0:00:20]} g6 {[%emt 0:00:19]} 37. f4 {[%emt 0:01:24]} h6 {[%emt 0:00:39]} 38. Kg3 {[%emt 0:01:00]} Bb5 {[%emt 0:00:26]} 39. f5 {[%emt 0:01:55]} g5 {[%emt 0:01:11]} 40. hxg5 {[%emt 0:00:13]} hxg5 {[%emt 0:00:01]} 41. Kg4 {[%emt 0:30:30]} Kd8 {[%emt 0:30:30]} 42. Re6 {[%emt 0:00:00]} Ba4 {[%emt 0:00:00]} 43. Rxf6 {[%emt 0:00:00]} Bxc2 {[%emt 0:00:00]} 44. Kxg5 {[%emt 0:00:00]} Ke7 {[%emt 0:00:00]} 45. Ra6 {[%emt 0:00:00]} Be4 {[%emt 0:00:00] normal} 46. Rxa7+ {[%emt 0:00:00]} Kf8 {[%emt 0:00:00] normal} 47. f6 {[%emt 0:00:00] normal} 1-0